Cogmind - Beta 13 @@@ ROGUE MODE // 2024.04.28 @ 14:12:06 Player: MiNathan Result: Destroyed by Y-54 Guardian with Gatling Laser Performance ------------- Evolutions (3) 1500 Regions Visited (8) 1600 Robots Destroyed (107) 535 Value Destroyed (3277) 3277 Prototype IDs (20) 400 Alien Tech Used (0) 0 Bonus (263) 263 TOTAL SCORE: 7575 Bonus ------- High Alert Combat Kills 88 Follower Combat Kills 49 Aligned with FarCom 300 Friendly Fire -174 Cogmind --------- Core Integrity 0/700 Matter 245/300 Energy 100/100 System Corruption 12% Temperature Cool (6) Movement Core (50) Location -7/Storage Parts ------- > --- POWER (2) -------- (None) > --- PROPULSION (2) --- (None) > --- UTILITY (5) ------ Improved Signal Interpreter > --- WEAPON (4) ------- (None) > --- INVENTORY (5) ---- Improved VTOL Module Improved VTOL Module Improved VTOL Module Peak State ------------ > --- POWER ------------ Deuterium Engine Improved Deuterium Engine > --- PROPULSION ------- Advanced Treads Advanced Treads > --- UTILITY ---------- Improved Signal Interpreter Powered Armor Hacking Suite Hacking Suite System Shield > --- WEAPON ----------- Lightning Gun AWS/Thermal Assault Cannon > --- INVENTORY -------- Improved VTOL Module Improved VTOL Module Improved VTOL Module Xenon Bombardment Thruster Powered Hammer [Rating: 54] Favorites ----------- Power Deuterium Engine Engine Deuterium Engine Propulsion Light Treads Treads Light Treads Hover Unit Aerolev Unit Flight Unit Improved VTOL Module Utility Hacking Suite Device Structural Scanner Storage Medium Matter Pod Processor Signal Interpreter Hackware Hacking Suite Protection Powered Armor Weapon AWS/Thermal Energy Gun AWS/Thermal Energy Cannon Advanced Beam Cannon Ballistic Gun Gauss Rifle Ballistic Cannon Assault Cannon Launcher Grenade Launcher Special Weapon Field Lobotomy Kit Impact Weapon Powered Hammer Build | -11 -10 -9 -9 -9 -8 -8 -7 -7 ------- Run | Yrd Mat Mat Min Exi Min Mat Fac Sto Slots Evolved 6 | . . 2 . . . 2 2 . Power 1 | . . . . . . 1 . . Propulsion . | . . . . . . . . . Utility 3 | . . 2 . . . . 1 . Weapon 2 | . . . . . . 1 1 . Parts Attached 100 | 5 11 12 6 5 2 42 14 3 Power 13 | 1 2 2 1 2 . 4 1 . Engine 13 | 1 2 2 1 2 . 4 1 . Core . | . . . . . . . . . Reactor . | . . . . . . . . . Propulsion 23 | 2 . 2 2 . . 13 4 . Treads 19 | 2 . 2 2 . . 10 3 . Leg . | . . . . . . . . . Wheel . | . . . . . . . . . Hover 1 | . . . . . . 1 . . Flight 3 | . . . . . . 2 1 . Utility 18 | . 4 3 . . 1 5 5 . Device 4 | . 2 1 . . . 1 . . Storage 1 | . . . . . . . 1 . Processor 6 | . 1 1 . . 1 2 1 . Hackware 5 | . 1 1 . . . 2 1 . Protection 2 | . . . . . . . 2 . Artifact . | . . . . . . . . . Weapon 46 | 2 5 5 3 3 1 20 4 3 Energy Gun 22 | 1 3 3 1 1 1 11 1 . Energy Cannon 2 | . . 1 1 . . . . . Ballistic Gun 3 | 1 . 1 . . . . 1 . Ballistic Cannon 6 | . . . 1 . . 5 . . Launcher 4 | . 1 . . . . 1 . 2 Special Weapon 2 | . . . . 2 . . . . Impact Weapon 7 | . 1 . . . . 3 2 1 Slashing Weapon . | . . . . . . . . . Piercing Weapon . | . . . . . . . . . Special Melee Weapon . | . . . . . . . . . Unidentified Prototypes 13 | . . 2 . 2 . 8 . 1 Parts Lost 18 | . 5 . . . . 1 1 11 Power 3 | . 1 . . . . . . 2 Propulsion 2 | . . . . . . . . 2 Utility 7 | . 2 . . . . 1 1 3 Weapon 6 | . 2 . . . . . . 4 Highest Loss Streak 11 | . 5 . . . . 1 1 11 To Critical Strikes . | . . . . . . . . . Average Slot Usage (%) 86 | . 92 81 100 91 79 83 88 72 Engine 12 | . 13 8 11 11 11 16 11 11 Treads 19 | . 28 22 22 22 22 17 15 11 Device 9 | . 12 17 22 22 12 6 . . Processor 9 | . 8 7 11 11 12 9 7 7 Hackware 14 | . 2 4 11 11 11 18 22 13 Protection 1 | . . . . . . . 6 4 Energy Gun 7 | . 11 12 1 . 2 9 10 . Energy Cannon 1 | . . 4 11 3 . . . . Ballistic Gun 1 | . . 3 . . . . 2 5 Ballistic Cannon 4 | . . . 9 3 . 5 7 5 Launcher 1 | . 12 . . . . . . 8 Special Weapon 1 | . . . . 7 8 . . . Naked Turns . | . . . . . . . . . Heaviest Build 79 | 8 11 16 17 17 17 79 46 52 Greatest Support 44 | 40 40 40 40 40 40 44 44 42 Greatest Overweight (x) 9 | . . . . . . 9 1 1 Average Overweight (x) . | . . . . . . . . . Largest Inventory Capacity 5 | 5 5 5 5 5 5 5 5 5 Average Capacity 5 | 5 5 5 5 5 5 5 5 5 Most Carried 5 | 5 2 2 3 5 5 5 5 5 Average Carried 3 | . . . 1 3 4 3 3 3 Final Capacity 5 | 5 5 5 5 5 5 5 5 5 Final Carried 5 | . . 1 1 5 3 4 3 3 Class Distribution -------------------- 26% | Scavenger-Skirmisher 23% | Scavenger-Mutant 16% | Hacker-Mutant 13% | Mutant 12% | Hacker-Skirmisher 7% | Hacker-Tank Dominant Class ---------------- Mutant | -10/Materials Scavenger-Skirmisher | -9/Materials Scavenger-Skirmisher | -9/Mines Scavenger-Mutant | -9/Exiles Scavenger-Mutant | -8/Mines Hacker-Skirmisher | -8/Materials Hacker-Mutant | -7/Factory Hacker-Tank | -7/Storage Resources | -11 -10 -9 -9 -9 -8 -8 -7 -7 ----------- Run | Yrd Mat Mat Min Exi Min Mat Fac Sto Matter Collected 1842 | 235 244 264 76 . 51 577 312 83 Remotely . | . . . . . . . . . Salvage Created 3937 | . 255 742 129 . 20 2271 379 141 Parts 210 | . 28 44 11 . 3 100 18 6 Haulers Intercepted 7 | . 1 1 . . . 5 . . Recyclers Shooed 3 | . . 2 . . . 1 . . Parts Field Recycled . | . . . . . . . . . Retrieved Matter . | . . . . . . . . . Parts Self-Destructed . | . . . . . . . . . Prevented . | . . . . . . . . . Kills | -11 -10 -9 -9 -9 -8 -8 -7 -7 ------- Run | Yrd Mat Mat Min Exi Min Mat Fac Sto Combat Hostiles Destroyed 69 | . 10 8 4 . 1 35 7 4 Melee 1 | . . . . . . 1 . . Guns 33 | . 1 7 . . 1 20 4 . Cannons 21 | . . 1 4 . . 13 3 . AOE 13 | . 9 . . . . 1 . 3 Classes Destroyed 16 | . 7 3 . . . 5 1 . Worker 6 | . 3 . . . . 3 . . Builder 4 | . 2 1 . . . 1 . . Hauler 7 | . 1 1 . . . 5 . . Recycler 7 | . . 4 . . . 3 . . Mechanic 1 | . 1 . . . . . . . Operator 7 | . 2 1 . . . 3 . 1 Watcher 7 | . . 1 . . . 4 2 . Swarmer 8 | . 5 . 2 . 1 . . . Grunt 41 | . 5 6 . . . 23 4 3 Brawler 1 | . . . . . . 1 . . Duelist 1 | . . . . . . 1 . . Sentry 13 | . . 2 2 . . 7 1 1 Specialist 2 | . . . . . . 2 . . Hunter 1 | . . . . . . 1 . . Programmer 2 | . . . . . . . 2 . Heavy 1 | . . . . . . 1 . . Best Kill Streak 9 | . 7 3 2 . 1 9 2 3 Combat Bots Only 7 | . 5 2 2 . 1 7 2 3 Max Kills in Single Turn 2 | . 2 1 1 . 1 2 1 2 Gunslinging . | . . . . . . . . . Exploded 2 | . 2 . . . . 1 . 2 Melee 1 | . . . . . . 1 . . Uniques/NPCs Destroyed . | . . . . . . . . . Combat | -11 -10 -9 -9 -9 -8 -8 -7 -7 -------- Run | Yrd Mat Mat Min Exi Min Mat Fac Sto Hostile Shots Fired 624 | . 29 43 8 . 4 67 74 399 Missed 233 | . 12 9 3 . 2 27 32 148 Damage Taken 4469 | . 889 420 60 . 24 593 503 1980 Core 1056 | . 213 31 23 . . 81 63 645 Absorbed by Shields . | . . . . . . . . . Regen/Repaired (Parts) 119 | . . . . . . 119 . . Core Remaining (%) 71 | 100 14 . . . 86 85 . . Volleys Fired 231 | . 40 51 4 . 5 92 33 6 Largest 4 | . 2 2 2 . 1 1 2 4 Hottest 162 | . 80 113 107 . . 61 99 162 Shots Fired 508 | . 50 91 8 . 13 251 83 12 Gun 344 | . 31 68 . . 8 182 50 5 Cannon 135 | . . 23 8 . . 69 33 2 Launcher 24 | . 19 . . . . . . 5 Special 5 | . . . . . 5 . . . Kinetic 151 | . . 26 4 . . 69 45 7 Thermal 281 | . 31 52 4 . 8 170 16 . Explosive 24 | . 19 . . . . . . 5 Electromagnetic 47 | . . 13 . . . 12 22 . Robot Hit Streak 16 | . 6 11 5 . 8 15 16 2 Robot Miss Streak 5 | . 5 2 3 . 3 4 4 4 Penetration Max 1 | . . . . . . 1 . . Secondary Targets . | . . . . . . . . . Autonomous 183 | . . . . . 8 158 17 . Shots Hit Robots 337 | . 24 57 5 . 9 178 52 12 Core Hits 164 | . 29 27 6 . 2 64 18 18 Critical Kills . | . . . . . . . . . Critical Parts Destroyed 1 | . . . . . . . . 1 Critical Strikes 16 | . 1 4 . . . 7 2 2 Burn 8 | . 1 4 . . . 3 . . Blast 4 | . . . . . . 3 1 . Corrupt 2 | . . . . . . 1 1 . Smash 2 | . . . . . . . . 2 Melee Attacks 13 | . 2 . . . . 3 . 8 Impact 13 | . 2 . . . . 3 . 8 Slashing . | . . . . . . . . . Piercing . | . . . . . . . . . Sneak Attacks . | . . . . . . . . . Combat Hostiles . | . . . . . . . . . Follow-up Attacks . | . . . . . . . . . Damage Inflicted 10669 | . 1189 996 117 . 163 6259 1259 686 Guns 5495 | . 214 681 . . 143 3604 832 21 Cannons 3407 | . . 268 117 . . 2553 420 49 Explosions 1443 | . 975 47 . . . 65 . 356 Melee 227 | . . . . . . 34 . 193 Ramming 97 | . . . . . 20 3 7 67 Kinetic 3546 | . . 265 56 . . 2553 602 70 Thermal 4949 | . 214 532 61 . 143 3538 461 . Explosive 1331 | . 975 . . . . . . 356 Electromagnetic 519 | . . 199 . . . 131 189 . Impact 227 | . . . . . . 34 . 193 Slashing . | . . . . . . . . . Piercing . | . . . . . . . . . Highest Corruption 17 | . 17 . . . . 7 4 12 Average Corruption 3 | . 3 . . . . 4 3 4 Corruption Purged . | . . . . . . . . . Corruption Blocked . | . . . . . . . . . Effects 79 | . 15 . . . . 41 18 5 Message Errors 22 | . 3 . . . . 13 6 . Matter Fused 17 | . 6 . . . . 10 1 . Heat Flow Errors 20 | . 3 . . . . 9 7 1 Energy Discharges 8 | . 1 . . . . 4 2 1 Parts Rejected 1 | . . . . . . . . 1 Data Loss (minor) 5 | . 1 . . . . 3 1 . Data Loss (major) 4 | . 1 . . . . 1 . 2 Misfires 2 | . . . . . . 1 1 . Overload Shots . | . . . . . . . . . Overflow Damage 225 | . 6 . . . . 183 14 22 Projectiles 197 | . . . . . . 183 14 . Explosions 6 | . 6 . . . . . . . Melee 22 | . . . . . . . . 22 Knockbacks 10 | . . . . . . 8 2 . Impact . | . . . . . . . . . Kinetic 10 | . . . . . . 8 2 . Secondary . | . . . . . . . . . Self-Inflicted Damage 187 | . 65 14 . . . . . 108 Shots 9 | . 3 1 . . . . . 5 Rammed 38 | . . . . . 3 1 2 32 Targets Rammed 38 | . . . . . 3 1 2 32 Kicked . | . . . . . . . . . Crushed . | . . . . . . . . . Highest Temperature 276 | . 225 196 78 . . 276 264 184 Average Temperature 60 | . 47 57 40 . . 52 83 51 Received Heat Transfer 1173 | . 60 207 9 . . 180 177 540 Effects 1 | . . . . . . 1 . . Interference 1 | . . . . . . 1 . . Siege Activations . | . . . . . . . . . Robots Corrupted . | . . . . . . . . . Combat Hostiles . | . . . . . . . . . Parts Fried 5 | . . . . . . . 3 2 Impact Corruptions 1 | . . . . . . . . 1 Robots Melted . | . . . . . . . . . Combat Hostiles . | . . . . . . . . . Parts Melted 8 | . 1 1 1 . . 5 . . Heat Transferred 8166 | . 703 1456 111 . 185 5119 592 . Parts Sabotaged . | . . . . . . . . . Parts Stolen . | . . . . . . . . . Parts Stripped . | . . . . . . . . . Power Chain Reactions 2 | . . 1 . . . 1 . . Alert | -11 -10 -9 -9 -9 -8 -8 -7 -7 ------- Run | Yrd Mat Mat Min Exi Min Mat Fac Sto Peak Influence 565 | . 407 296 121 . 118 565 251 184 Initial 231 | . . 33 66 . . 45 231 9 Average 160 | . 217 134 70 . 38 297 107 90 Maximum Alert Level 2 | . 2 1 . . . 2 1 . Low Security (%) 65 | 100 25 79 100 . 100 34 75 100 Level 1 25 | . 74 20 . . . 34 24 . Level 2 8 | . . . . . . 30 . . Level 3 . | . . . . . . . . . Level 4 . | . . . . . . . . . Level 5 . | . . . . . . . . . High Security . | . . . . . . . . . Max Security . | . . . . . . . . . Squads Dispatched 19 | . 1 3 . . . 9 5 1 Investigation 7 | . 1 1 . . . 2 3 . Extermination 2 | . . . . . . . 2 . Reinforcement 7 | . . 2 . . . 4 . 1 Assault . | . . . . . . . . . Garrison 3 | . . . . . . 3 . . Intercept . | . . . . . . . . . Searches Triggered . | . . . . . . . . . Construction Impeded 2 | . . 1 . . . 1 . . Haulers Reinforced . | . . . . . . . . . Active Scanning Responses . | . . . . . . . . . Cargo Convoy Interrupts . | . . . . . . . . . Stealth | -11 -10 -9 -9 -9 -8 -8 -7 -7 --------- Run | Yrd Mat Mat Min Exi Min Mat Fac Sto Distress Signals 6 | . 2 . . . 1 3 . . Communications Jammed . | . . . . . . . . . Distress Signals . | . . . . . . . . . Times Spotted 101 | . 19 10 5 . 6 46 10 5 Peak Tracking Total 5 | . 4 2 2 . 4 5 2 3 Tactical Retreats 4 | . . . . . 1 3 . . Traps | -11 -10 -9 -9 -9 -8 -8 -7 -7 ------- Run | Yrd Mat Mat Min Exi Min Mat Fac Sto Traps Triggered 2 | . . . . . . 2 . . Indirectly . | . . . . . . . . . Trap Hack Attempts . | . . . . . . . . . Triggered . | . . . . . . . . . Disarmed 7 | . . 1 . . . . 6 . Reprogrammed . | . . . . . . . . . Reused . | . . . . . . . . . Traps Extracted . | . . . . . . . . . Installed . | . . . . . . . . . Triggered . | . . . . . . . . . Machines | -11 -10 -9 -9 -9 -8 -8 -7 -7 ---------- Run | Yrd Mat Mat Min Exi Min Mat Fac Sto Machines Disabled 11 | . 2 1 . . 1 4 1 2 Max in Single Turn 1 | . 1 1 . . . 1 1 1 Machines Repaired . | . . . . . . . . . Machines Dismantled . | . . . . . . . . . Machines Sabotaged . | . . . . . . . . . Overloaded Fab Kills . | . . . . . . . . . Hacking | -11 -10 -9 -9 -9 -8 -8 -7 -7 --------- Run | Yrd Mat Mat Min Exi Min Mat Fac Sto Machines Accessed 28 | . 6 2 . 2 . 9 7 2 Terminals 21 | . 5 2 . . . 7 5 2 Fabricators 1 | . . . . . . . 1 . Repair Stations 1 | . . . . . . 1 . . Recycling Units 2 | . 1 . . . . . 1 . Scanalyzers 1 | . . . . . . 1 . . Garrison Access . | . . . . . . . . . Total Hacks 90 | . 15 8 . 19 . 30 14 4 Successful 57 | . 6 6 . 19 . 19 6 1 Failed 33 | . 9 2 . . . 11 8 3 Catastrophic 8 | . 1 . . . . 2 4 1 Database Lockouts . | . . . . . . . . . Manual 6 | . . . . 1 . 1 4 . Terminals 57 | . 13 8 . . . 22 10 4 Fabricators 2 | . . . . . . . 2 . Repair Stations 5 | . . . . . . 5 . . Recycling Units 4 | . 2 . . . . . 2 . Scanalyzers 3 | . . . . . . 3 . . Garrison Access . | . . . . . . . . . Terminal Hacks 46 | . 4 6 . 19 . 12 4 1 Record 21 | . 1 . . 19 . 1 . . Robot Analysis 1 | . . . . . . 1 . . Prototype ID Bank 4 | . . 1 . . . 3 . . Open Door 1 | . . . . . . . . 1 Open DSF 2 | . . . . . . . 2 . Alert Level 2 | . . . . . . 2 . . Unreport Threat 1 | . . . . . . 1 . . Locate Traps 2 | . 1 1 . . . . . . Disarm Traps 3 | . . 2 . . . . 1 . Maintenance Status 2 | . . 1 . . . 1 . . Hauler Manifests 2 | . 1 . . . . 1 . . Registered Components 1 | . . . . . . . 1 . Registered Prototypes 1 | . . . . . . 1 . . Zone Layout 3 | . 1 1 . . . 1 . . Fabricator Hacks 2 | . . . . . . . 2 . Network Status 1 | . . . . . . . 1 . Build 1 | . . . . . . . 1 . Repair Station Hacks 4 | . . . . . . 4 . . Scan Component 2 | . . . . . . 2 . . Repair 2 | . . . . . . 2 . . Recycling Unit Hacks 2 | . 2 . . . . . . . Process 1 | . 1 . . . . . . . Retrieve Matter 1 | . 1 . . . . . . . Scanalyzer 3 | . . . . . . 3 . . Insert Component 1 | . . . . . . 1 . . Analyze 2 | . . . . . . 2 . . Garrison Access Hacks . | . . . . . . . . . Unauthorized Hacks . | . . . . . . . . . Terminals . | . . . . . . . . . Fabricators . | . . . . . . . . . Repair Stations . | . . . . . . . . . Recycling Units . | . . . . . . . . . Scanalyzers . | . . . . . . . . . Garrison Access . | . . . . . . . . . Data Cores Recovered 1 | . 1 . . . . . . . Used 1 | . 1 . . . . . . . Hacking Detections 20 | . 5 2 . . . 7 5 1 Full Trace Events 10 | . 3 2 . . . 2 3 . Feedback Events 4 | . 3 . . . . . 1 . Corruption 3 | . 3 . . . . . . . Hackware Fried 1 | . . . . . . . 1 . Feedback Blocked . | . . . . . . . . . Robot Schematics Acquired . | . . . . . . . . . Robots Built . | . . . . . . . . . Authchips . | . . . . . . . . . Time . | . . . . . . . . . Total Robot Build Rating . | . . . . . . . . . Part Schematics Acquired 1 | . . . . . . 1 . . Parts Built 2 | . . . . . . . 2 . Authchips . | . . . . . . . . . Time 84 | . . . . . . . 84 . Total Part Build Rating 8 | . . . . . . . 8 . Parts Repaired 2 | . . . . . . 2 . . Time 76 | . . . . . . 76 . . Parts Recycled . | . . . . . . . . . Recycled Matter 77 | . 77 . . . . . . . Retrieved Matter 174 | . 174 . . . . . . . Retrieved Components . | . . . . . . . . . Parts Scanalyzed 1 | . . . . . . 1 . . Part Schematics Acquired 1 | . . . . . . 1 . . Parts Damaged . | . . . . . . . . . Bothacking | -11 -10 -9 -9 -9 -8 -8 -7 -7 ------------ Run | Yrd Mat Mat Min Exi Min Mat Fac Sto Used RIF Installer . | . . . . . . . . . Robots Hacked . | . . . . . . . . . Non-combat . | . . . . . . . . . Combat . | . . . . . . . . . Robot Hacks Applied . | . . . . . . . . . Relay Couplers Released . | . . . . . . . . . Fabnet Peak Effective % . | . . . . . . . . . Robots Rewired . | . . . . . . . . . Allies Hacked . | . . . . . . . . . Hacks Repelled . | . . . . . . . . . Allies | -11 -10 -9 -9 -9 -8 -8 -7 -7 -------- Run | Yrd Mat Mat Min Exi Min Mat Fac Sto Total Allies 6 | . . . 2 . 4 . . . Largest Group 4 | . . . 2 2 4 4 . . Highest-Rated Group 48 | . . . 48 48 35 35 . . Highest-Rated Ally 31 | . . . 31 31 13 13 . . Total Orders 2 | . . . . . . 2 . . ROAM 2 | . . . . . . 2 . . Ally Attacks 11 | . . . . . 9 2 . . Total Damage 179 | . . . . . 163 16 . . Kills 3 | . . . . . 3 . . . Allies Corrupted 1 | . . . . . . 1 . . Allies Melted . | . . . . . . . . . Field Lobotomies 4 | . . . . . 4 . . . Intel | -11 -10 -9 -9 -9 -8 -8 -7 -7 ------- Run | Yrd Mat Mat Min Exi Min Mat Fac Sto Robot Analysis Total 1 | . . . . . . 1 . . Derelict Logs Recovered 2 | . . . 2 . . . . . Drone Launches . | . . . . . . . . . Drone Recoveries . | . . . . . . . . . Exploration | -11 -10 -9 -9 -9 -8 -8 -7 -7 ------------- Run | Yrd Mat Mat Min Exi Min Mat Fac Sto Turns Passed 8101 | 61 840 579 765 686 1168 2139 1626 237 Spaces Moved 3804 | 43 443 234 459 421 490 863 779 72 Core 29 | 15 . . . . . 9 . 5 Treads 3750 | 28 443 234 459 421 490 829 779 67 Legs . | . . . . . . . . . Wheels . | . . . . . . . . . Hover . | . . . . . . . . . Flight 25 | . . . . . . 25 . . Fastest Speed 50 | 50 160 160 160 160 160 102 145 50 Average Speed 166 | 121 160 160 160 160 160 173 177 200 Slowest Speed 500 | 160 160 160 160 160 160 500 237 237 Overloaded Moves . | . . . . . . . . . Propulsion Burnouts . | . . . . . . . . . Robots Hopped . | . . . . . . . . . Cave-ins Triggered 2 | . 2 . . . . . . . Exploration Rate (%) 51 | 3 70 16 97 87 88 72 16 16 Regions Visited 8 Branch Regions 4 Pre-discovered Areas . | . . . . . . . . . Known Exits Taken 7 | . 1 1 1 1 1 1 1 . Unknown Exits Taken 1 | 1 . . . . . . . . Scrap Searched 2 | . . . 1 . 1 . . . Spaces Dug 29 | . 21 . . . . 7 1 . Terrain Destroyed 262 | . 122 6 . . 3 42 2 87 Melee 3 | . 1 . . . . 2 . . Projectile 42 | . . . . . 3 37 2 . AOE 217 | . 121 6 . . . 3 . 87 Terrain Rammed . | . . . . . . . . . Walls Destroyed . | . . . . . . . . . Machines Disabled . | . . . . . . . . . Actions | -11 -10 -9 -9 -9 -8 -8 -7 -7 --------- Run | Yrd Mat Mat Min Exi Min Mat Fac Sto Total 5190 | 52 520 347 482 436 863 1413 953 124 Wait 852 | . 10 33 . . 362 343 104 . Move 3796 | 42 442 233 458 420 489 862 778 72 Hop . | . . . . . . . . . Pick Up 91 | 5 10 12 7 4 1 37 13 2 Fast Attach 2 | . . . . . . 2 . . Attach 39 | 5 4 5 . 3 2 13 4 3 Detach 6 | . . . . 2 . 3 . 1 Swap 59 | . 7 7 6 2 . 27 10 . Drop 62 | . 5 6 7 4 1 30 9 . Fire 231 | . 40 51 4 . 5 92 33 6 Melee 13 | . 2 . . . . 3 . 8 Ram 13 | . . . . . . . . 13 Kick . | . . . . . . . . . Crush 25 | . . . . . 3 1 2 19 Escape Stasis . | . . . . . . . . . Rewire 1 | . . . . 1 . . . . Trap . | . . . . . . . . . Miscellaneous . | . . . . . . . . . Route ------- -11/Scrapyard -10/Materials (discovered 2 exits: *Mat x2) -9/Materials -9/Mines (discovered 3 exits: *Mat x2 / *Exi) -9/Exiles -8/Mines -8/Materials (discovered 3 exits: *Fac x3) -7/Factory (discovered 2 exits: *Sto x2) -7/Storage History --------- Turn | Location | Event 25 | -11/Scrapyard | Discovered new exit (range 15) 62 | -11/Scrapyard | Entered Materials 300 | -10/Materials | Build established: Mutant 413 | -10/Materials | Discovered new exit (range 15) 483 | -10/Materials | Identified exit to Materials 859 | -10/Materials | Crushed by falling debris 861 | -10/Materials | Crushed by falling debris 861 | -10/Materials | Core integrity fell below 50% 861 | -10/Materials | Core integrity fell below 20% 861 | -10/Materials | System corruption reached 10% 891 | -10/Materials | Discovered exit to Materials (range 5) 892 | -10/Materials | Lost 5 parts (1p2u2w) 902 | -10/Materials | Entered another Materials area 902 | -9/Materials | Evolved 2 slots: Utility x2 973 | -9/Materials | Discovered new exit (range 10) 1344 | -9/Materials | Identified exit to Mines 1433 | -9/Materials | Build established: Scavenger-Skirmisher 1481 | -9/Materials | Entered Mines 1625 | -9/Mines | Discovered new exit (range 15) 1646 | -9/Mines | Identified exit to Materials 1739 | -9/Mines | Discovered exit to Materials (range 7) 1757 | -9/Mines | Learned Materials non-interactive machine intel 2047 | -9/Mines | Deemed a non-threat by the Exiles lab entrance 2047 | -9/Mines | Discovered new exit (range 5) 2052 | -9/Mines | Identified exit to Exiles 2097 | -9/Mines | Found a hidden stash of uninstalled traps 2110 | -9/Mines | Learned Materials security intel 2246 | -9/Mines | Entered Exiles 2246 | -9/Exiles | Accompanied by 2 allies 2276 | -9/Exiles | Led the pair of lost Derelicts to a safe place 2286 | -9/Exiles | Met 8R-AWN 2314 | -9/Exiles | Met EX-HEX 2355 | -9/Exiles | Met EX-BIN 2376 | -9/Exiles | Aligned with FarCom system 2378 | -9/Exiles | Given EX-Vault access code 2430 | -9/Exiles | Opened EX-Vault 2437 | -9/Exiles | Found Prototype Energy Gun 2441 | -9/Exiles | Found Prototype Special Weapon 2446 | -9/Exiles | Identified AWS/Thermal 2448 | -9/Exiles | Identified Field Lobotomy Kit 2459 | -9/Exiles | Found Prototype Ballistic Cannon 2512 | -9/Exiles | Warned to stay clear of 0b10 Research branches 2557 | -9/Exiles | Met EX-DEC 2647 | -9/Exiles | Visited The Gauntlet 2736 | -9/Exiles | Build established: Scavenger-Mutant 2873 | -9/Exiles | Discovered new exit (range 14) 2889 | -9/Exiles | Identified exit to Mines 2932 | -9/Exiles | Stole three prototypes: Field Lobotomy Kit, AWS/Thermal, AWS/Autocannon 2932 | -9/Exiles | Entered Mines 3740 | -8/Mines | Assimilated B-36 Bruiser with FLK Orb 3746 | -8/Mines | Assimilated G-47 Trooper with FLK Orb 3816 | -8/Mines | Assimilated K-01 Serf with FLK Orb 3819 | -8/Mines | Assimilated K-01 Serf with FLK Orb 3969 | -8/Mines | Discovered exit to Materials (range 5) 4100 | -8/Mines | Entered Materials 4100 | -8/Materials | Accompanied by 4 allies 4100 | -8/Materials | Evolved 2 slots: Power x1, Weapon x1 4101 | -8/Materials | Identified AWS/Autocannon 4102 | -8/Materials | Loaded intel: 29 non-interactive machine locations 4400 | -8/Materials | Build established: Scavenger-Skirmisher 4581 | -8/Materials | Lost 3 allies 4588 | -8/Materials | Destroyed 7 combat bots 5048 | -8/Materials | Discovered new exit (range 15) 5202 | -8/Materials | Garrison activated, responded to threat 5342 | -8/Materials | Build established: Hacker-Skirmisher 5598 | -8/Materials | Discovered new exit (range 8) 5627 | -8/Materials | Identified exit to Factory 5806 | -8/Materials | Repaired Deuterium Engine 5861 | -8/Materials | Repaired Deuterium Engine 6145 | -8/Materials | Discovered exit to Factory (range 10) 6239 | -8/Materials | Entered Factory 6239 | -7/Factory | Evolved 2 slots: Utility x1, Weapon x1 6240 | -7/Factory | Discovered new exit (range 14) 6241 | -7/Factory | FarCom data flow suspended 6327 | -7/Factory | Found Powered Armor 6487 | -7/Factory | Identified exit to DSF 6585 | -7/Factory | Discovered new exit (range 5) 6596 | -7/Factory | Identified exit to Storage 6627 | -7/Factory | Build established: Hacker-Tank 7091 | -7/Factory | Build established: Hacker-Mutant 7539 | -7/Factory | Fabricated Weapon Cycler (x2) 7819 | -7/Factory | Hacking Suite fried by hacking feedback 7865 | -7/Factory | Entered Storage 7894 | -7/Storage | Found Prototype Launcher 7895 | -7/Storage | Identified Rocket Array 7899 | -7/Storage | Found Rocket Array 8064 | -7/Storage | Core integrity fell below 50% 8080 | -7/Storage | Core integrity fell below 20% 8099 | -7/Storage | System corruption reached 10% 8102 | -7/Storage | Destroyed by Y-54 Guardian with Gatling Laser Last Messages --------------- R-06 Scavenger collects Corrupted Lgt. Treads. Powered Hammer destroyed. U-05 Engineer lays Concrete. Slammed into Y-54 Guardian. Hacking Suite destroyed. System corrupted by crushing effect (+4). Destabilizing: System corrupted (+2). U-05 Engineer lays Concrete. R-06 Scavenger collects Imp. Light Armor Plating. Slammed into Y-54 Guardian. U-05 Engineer lays Concrete. Slammed into Y-54 Guardian. U-05 Engineer lays Concrete. Slammed into Y-54 Guardian. Destabilizing: System corrupted (+2). U-05 Engineer lays Concrete. Slammed into Y-54 Guardian. U-05 Engineer builds a Wall. [Achievement: 5k Club] Map ----- +----------------------------------------------------+ | ???????????????????????????????????????? | | ???????????????????????????????????????? | | ???????????????????????????????????????? | | ???????????????????????????????????????? | | ???????????????????????????????????????? | | ???????????????????????????????????????? | | ???????????????????????????????????????? | | ???????????????????????????????????????? | | ???????????????????????????????????????? | | ???????????????????????????????????????? | | ???????????????????????????????????????? | | ???????????????????????????#+##????????? | | ??????????????????????????? +????????? | | ??????????????????????????# #????????? | | ?????????????????????????? #????????? | | ?????????????????????????? #????????? | | ?????????????????????????? +????????? | | ?????????????????????????? #????????? | | ??????????????????????????# #????????? | | ???????????????????????#### #????????? | | ???????????????????##### ## ###??????? | | ????????????????#### ## ^ ######?? | | ????????????????# # !!!!#?? | | ????????????????# r # " #?? | | ????????????????# " m # !!!???? | | ????????????????# "" u @# #T #????? | | ????????????????# " Y/ #????? | | ????????????????# """" # u # ##????? | | ????????????????# # ## #????? | | ????????????????# # ###????? | | ????????????????####" ""# # ##??????? | | ???????????????????#"R"" ## #???????? | | ???????????????????#"""" ##???????? | | ???????????????????#### # T#???????? | | ??????????????????????### #???????? | | ??????????????????????# ##???????? | | ??????????????????????## ##???????? | | ???????????????????????## ##???????? | | ????????????????????????## ##???????? | | ?????????????????????????## #????????? | | ??????????????????????????# #????????? | | ??????????????????????????# ########## | | ??????????????????????##### # # | | ??????????????????????#]]## # | | ??????????????????????#] ## # ! | | ??????????????????????#] ## | | ?????????????????????## ## ! | | ?????????????????????#T # | | ?????????????????????## | | ??????????????????????##### " " # | +----------------------------------------------------+ Best States ------------- Heat Dissipation 34 Energy Generation 25 Energy Capacity 465 Matter Stores 300 Matter Capacity 300 Sight Range 16 Robot Scan Range 14 Terrain Scan Density 10 ECM Strength 2 Armor Coverage 400 Evasion (%) 40 Targeting Accuracy 8 Recoil Reduction 2 Offensive Hacking 20 Defensive Hacking 10 Item Schematics ----------------- Powered Hammer | -8/Materials | Scanalyzed Robot Schematics ------------------ None Fabricated ------------ Weapon Cycler | x2 | -7/Factory | Preloaded Alien Tech Used ----------------- None Achievements -------------- 5k Club Just What I Needed Serviceable Loadout Challenges ------------ None Game ------ Seed RocketOpticalSuite Manual? 0 Play Time 00:48:51 Cumulative 5.2 hours Start 2024.04.28 @ 13:25:37 End 2024.04.28 @ 14:12:06 Sessions 1 Manual Loads 0 Difficulty Rogue Special Mode None Game No. 21 Rogue 7 Adventurer 14 Explorer 0 Win Type - Total 0 Types 0/0/0/0/0/0/0/0/0 Lore% 13 Gallery% 14 Achievement% 14 Wizard Run 0 Options --------- Layout 1 ASCII 0 Keyboard 0 Movement Mouse Keybinds 0 Fullscreen 2 Font 24/Proggy Map View 50x35 Zoom Use 0% Tactical HUD 0 Map Filters NONE Filters NONE Steam 1 RUN: d1c88817-5735-4ea8-b01d-9fea08cf1f33